fUSD/lending_fUSD_20240214
["ID","MTS","AMOUNT","RATE_DAILY","PERIOD"]
[314002380,1707922244081,-516.77054475,0.00036712,2]
[314002381,1707922244090,-500.0,0.00036712,2]
[314002382,1707922244100,-500.0,0.00036712,2]
[314002383,1707922244109,-500.0,0.00036712,2]
[314002384,1707922244118,-500.0,0.00036712,2]
[314002385,1707922244127,-611.99352007,0.00036712,2]
[314002386,1707922244137,-500.0,0.00036712,2]
[314002387,1707922244146,-500.0,0.00036712,2]
[314002388,1707922244155,-500.0,0.00036712,2]
[314002389,1707922244164,-500.0,0.00036712,2]
[314002390,1707922244173,-500.0,0.00036712,2]
[314002391,1707922244182,-250.88882364,0.00036712,2]
[314002392,1707922244191,-500.0,0.00036712,2]
[314002393,1707922244200,-547.15,0.00036712,2]
[314002394,1707922244209,-500.0,0.00036712,2]
[314002395,1707922244218,-561.79,0.00036712,2]
[314002396,1707922244227,-500.0,0.00036712,2]
[314002397,1707922244238,-500.0,0.00036712,2]
[314002398,1707922244247,-500.0,0.00036712,2]
[314002399,1707922244257,-500.0,0.00036712,2]
[314002400,1707922244267,-500.0,0.00036712,2]
[314002401,1707922244275,-500.0,0.00036712,2]
[314002402,1707922244284,-500.0,0.00036712,2]
[314002403,1707922244293,-500.0,0.00036712,2]
[314002404,1707922244302,-301.99328449,0.00036712,10]
[314002405,1707922244312,-500.0,0.00036712,2]
[314002406,1707922244322,-500.0,0.00036712,2]
[314002407,1707922244332,-500.0,0.00036712,2]
[314002408,1707922244342,-500.0,0.00036712,2]
[314002409,1707922244352,-500.0,0.00036712,2]
[314002410,1707922244361,-500.0,0.00036712,2]
[314002411,1707922244371,-500.0,0.00036712,2]
[314002412,1707922244380,-500.0,0.00036712,2]
[314002413,1707922244390,-500.0,0.00036712,2]
[314002414,1707922244400,-157.30554956,0.00036712,2]
[314002415,1707922244410,-500.0,0.00036712,2]
[314002416,1707922244420,-500.0,0.00036712,2]
[314002417,1707922244429,-500.0,0.00036712,2]
[314002418,1707922244439,-500.0,0.00036712,2]
[314002419,1707922244449,-500.0,0.00036712,2]
[314002420,1707922244459,-500.0,0.00036712,2]
[314002421,1707922244469,-500.0,0.00036712,2]
[314002422,1707922244478,-501.35415839,0.00036712,2]
[314002423,1707922244488,-500.0,0.00036712,2]
[314002424,1707922244497,-500.0,0.00036712,2]
[314002425,1707922244507,-500.0,0.00036712,2]
[314002426,1707922244517,-517.76918451,0.00036712,2]
[314002427,1707922244527,-500.0,0.00036712,2]
[314002428,1707922244537,-500.0,0.00036712,2]
[314002429,1707922244546,-500.0,0.00036712,2]
[314002430,1707922244555,-500.0,0.00036712,2]
[314002431,1707922244565,-500.0,0.00036712,2]
[314002432,1707922244574,-522.41,0.00036712,2]
[314002433,1707922244584,-500.0,0.00036712,2]
[314002434,1707922244594,-500.0,0.00036712,2]
[314002435,1707922244604,-500.0,0.00036712,2]
[314002436,1707922244614,-500.0,0.00036712,2]
[314002437,1707922244624,-500.0,0.00036712,2]
[314002438,1707922244634,-500.0,0.00036712,2]
[314002439,1707922244646,-500.0,0.00036712,2]
[314002440,1707922244656,-559.92609618,0.00036712,2]
[314002441,1707922244666,-500.0,0.00036712,2]
[314002442,1707922244676,-500.0,0.00036712,2]
[314002443,1707922244685,-500.0,0.00036712,2]
[314002444,1707922244695,-500.0,0.00036712,2]
[314002445,1707922244705,-500.0,0.00036712,2]
[314002446,1707922244716,-500.0,0.00036712,2]
[314002447,1707922244726,-500.0,0.00036712,2]
[314002448,1707922244735,-500.0,0.00036712,2]
[314002449,1707922244745,-615.62,0.00036712,2]
[314002450,1707922244755,-500.0,0.00036712,2]
[314002451,1707922244764,-500.0,0.00036712,2]
[314002452,1707922244775,-523.8,0.00036712,2]
[314002453,1707922244785,-500.0,0.00036712,2]
[314002454,1707922244794,-500.0,0.00036712,2]
[314002455,1707922244804,-500.0,0.00036712,2]
[314002456,1707922244814,-500.0,0.00036712,2]
[314002457,1707922244823,-500.0,0.00036712,2]
[314002458,1707922244833,-500.0,0.00036712,2]
[314002459,1707922244843,-500.0,0.00036712,2]
[314002460,1707922244853,-457.92885299,0.00036712,2]
[314002461,1707922244863,-500.0,0.00036712,2]
[314002462,1707922244872,-409.46593426,0.00036712,2]
[314002463,1707922244882,-613.01,0.00036712,2]
[314002464,1707922244892,-500.0,0.00036712,2]
[314002465,1707922244902,-500.0,0.00036712,2]
[314002466,1707922244912,-500.0,0.00036712,2]
[314002467,1707922244922,-500.0,0.00036712,2]
[314002468,1707922244932,-506.50987537,0.00036712,2]
[314002469,1707922244942,-500.0,0.00036712,2]
[314002470,1707922244952,-544.95,0.00036712,2]
[314002471,1707922244962,-500.0,0.00036712,2]
[314002472,1707922244972,-500.0,0.00036712,2]
[314002473,1707922244982,-500.0,0.00036712,2]
[314002474,1707922244991,-500.0,0.00036712,2]
[314002475,1707922245001,-500.0,0.00036712,2]
[314002476,1707922245011,-500.0,0.00036712,2]
[314002477,1707922245021,-500.0,0.00036712,2]
[314002478,1707922245032,-549.25190944,0.00036712,2]
[314002479,1707922245041,-500.0,0.00036712,2]
[314002480,1707922245050,-500.0,0.00036712,2]
[314002481,1707922245060,-773.06,0.00036712,2]
[314002482,1707922245069,-503.67997,0.00036712,2]
[314002483,1707922245079,-554.32632322,0.00036712,2]
[314002484,1707922245088,-500.0,0.00036712,2]
[314002485,1707922245098,-1111.37,0.00036712,2]
[314002486,1707922245108,-500.0,0.00036712,2]
[314002487,1707922245118,-500.0,0.00036712,2]
[314002488,1707922245127,-500.0,0.00036712,2]
[314002489,1707922245136,-500.0,0.00036712,2]
[314002490,1707922245146,-500.0,0.00036712,2]
[314002491,1707922245156,-500.0,0.00036712,2]
[314002492,1707922245166,-500.0,0.00036712,2]
[314002493,1707922245175,-541.45873928,0.00036712,2]
[314002494,1707922245184,-500.0,0.00036712,2]
[314002495,1707922245194,-3662.58,0.00036712,7]
[314002496,1707922245204,-419.2417394,0.00036712,2]
[314002497,1707922245215,-528.30613777,0.00036712,2]
[314002498,1707922245228,-500.0,0.00036712,2]
[314002499,1707922245239,-621.45444303,0.00036712,2]
[314002500,1707922245250,-500.0,0.00036712,2]
[314002501,1707922245260,-500.0,0.00036712,2]
[314002502,1707922245271,-500.0,0.00036712,2]
[314002503,1707922245281,-671.95,0.00036712,2]
[314002504,1707922245291,-549.04567275,0.00036712,2]
[314002505,1707922245301,-250.0,0.00036712,2]
[314002506,1707922245312,-510.44610952,0.00036712,2]
[314002507,1707922245324,-589.97539335,0.00036712,2]
[314002508,1707922245334,-157.68764963,0.00036712,2]
[314002509,1707922245344,-500.0,0.00036712,2]
[314002510,1707922245354,-701.24,0.00036712,2]
[314002511,1707922245364,-510.88705155,0.00036712,2]
[314002512,1707922245375,-509.11720245,0.00036712,2]
[314002513,1707922245385,-578.46,0.00036712,2]
[314002514,1707922245395,-500.0,0.00036712,2]
[314002515,1707922245405,-507.64853452,0.00036712,2]
[314002516,1707922245415,-513.43995523,0.00036712,2]
[314002517,1707922245426,-507.20713816,0.00036712,2]
[314002518,1707922245436,-833.72,0.00036712,2]
[314002519,1707922245447,-500.0,0.00036712,2]
[314002520,1707922245457,-500.0,0.00036712,2]
[314002521,1707922245467,-988.0,0.00036712,2]
[314002522,1707922245478,-500.0,0.00036712,2]
[314002523,1707922245488,-500.0,0.00036712,2]
[314002524,1707922245498,-500.0,0.00036712,2]
[314002525,1707922245508,-507.6854518,0.00036712,2]
[314002526,1707922245519,-500.0,0.00036712,2]
[314002527,1707922245529,-500.0,0.00036712,2]
[314002528,1707922245539,-500.0,0.00036712,2]
[314002529,1707922245549,-549.94755987,0.00036712,2]
[314002530,1707922245559,-500.0,0.00036712,2]
[314002531,1707922245570,-500.0,0.00036712,2]
[314002532,1707922245580,-500.0,0.00036712,2]
[314002533,1707922245590,-500.0,0.00036712,2]
[314002534,1707922245601,-500.0,0.00036712,2]
[314002535,1707922245615,-809.94,0.00036712,2]
[314002536,1707922245625,-974.97,0.00036712,2]
[314002537,1707922245636,-500.0,0.00036712,2]
[314002538,1707922245646,-500.0,0.00036712,2]
[314002539,1707922245657,-500.0,0.00036712,2]
[314002540,1707922245667,-519.68,0.00036712,2]
[314002541,1707922245678,-500.0,0.00036712,2]
[314002543,1707922245689,-918.26,0.00036712,2]
[314002545,1707922245700,-604.57,0.00036712,2]
[314002546,1707922245711,-500.0,0.00036712,2]
[314002547,1707922245722,-500.0,0.00036712,2]
[314002548,1707922245732,-500.0,0.00036712,2]
[314002549,1707922245743,-598.25389355,0.00036712,2]
[314002551,1707922245753,-218.94194108,0.00036712,2]
[314002553,1707922245764,-615.15570169,0.00036712,30]
[314002554,1707922245777,-790.69,0.00036712,2]
[314002555,1707922245788,-500.0,0.00036712,2]
[314002556,1707922245799,-500.0,0.00036712,2]
[314002557,1707922245810,-549.93,0.00036712,2]
[314002559,1707922245820,-516.55822595,0.00036712,2]
[314002560,1707922245831,-700.08,0.00036712,2]
[314002561,1707922245842,-500.0,0.00036712,2]
[314002562,1707922245852,-358.92145912,0.00036712,2]
[314002563,1707922245862,-508.14615066,0.00036712,2]
[314002564,1707922245873,-512.0885526,0.00036712,2]
[314002565,1707922245883,-584.67766614,0.00036712,2]
[314002566,1707922245893,-928.98,0.00036712,2]
[314002567,1707922245903,-811.44,0.00036712,2]
[314002568,1707922245914,-500.0,0.00036712,2]
[314002569,1707922245924,-778.18,0.00036712,2]
[314002570,1707922245934,-645.58,0.00036712,2]
[314002571,1707922245945,-500.0,0.00036712,2]
[314002572,1707922245956,-500.0,0.00036712,2]
[314002573,1707922245966,-500.0,0.00036712,2]
[314002574,1707922245977,-500.0,0.00036712,2]
[314002575,1707922245987,-777.14,0.00036712,2]
[314002576,1707922245998,-574.95,0.00036712,2]
[314002577,1707922246008,-500.0,0.00036712,2]
[314002578,1707922246019,-530.17689856,0.00036712,2]
[314002579,1707922246029,-601.95,0.00036712,2]
[314002580,1707922246039,-656.0,0.00036712,2]
[314002581,1707922246049,-500.0,0.00036712,2]
[314002582,1707922246060,-500.0,0.00036712,2]
[314002583,1707922246070,-500.0,0.00036712,2]
[314002584,1707922246080,-472.75071559,0.00036712,2]
[314002585,1707922246091,-500.0,0.00036712,2]
[314002586,1707922246101,-500.0,0.00036712,2]
[314002587,1707922246111,-567.31235313,0.00036712,2]
[314002588,1707922246121,-1207.5,0.00036712,2]
[314002589,1707922246131,-500.0,0.00036712,2]
[314002590,1707922246141,-649.71209647,0.00036712,2]
[314002591,1707922246151,-619.39,0.00036712,2]
[314002592,1707922246162,-1111.83,0.00036712,2]
[314002593,1707922246173,-500.0,0.00036712,2]
[314002594,1707922246184,-500.0,0.00036712,2]
[314002595,1707922246194,-500.0,0.00036712,2]
[314002596,1707922246203,-500.0,0.00036712,2]
[314002597,1707922246213,-504.65029806,0.00036712,2]
[314002598,1707922246224,-500.0,0.00036712,2]
[314002599,1707922246233,-956.38,0.00036712,2]
[314002600,1707922246243,-856.66,0.00036712,2]
[314002601,1707922246253,-500.0,0.00036712,2]
[314002602,1707922246263,-500.0,0.00036712,2]
[314002603,1707922246273,-500.0,0.00036712,2]
[314002604,1707922246284,-252.02203154,0.00036712,2]
[314002619,1707922246894,-1417.21119529,0.00036411,2]
[314002620,1707922246905,-247.97796846,0.00036712,2]
[314002621,1707922246916,-500.0,0.00036712,2]
[314002622,1707922246926,-500.0,0.00036712,2]
[314002623,1707922246939,-500.0,0.00036712,2]
[314002624,1707922246949,-500.0,0.00036712,2]
[314002625,1707922246960,-500.0,0.00036712,2]
[314002626,1707922246970,-500.0,0.00036712,2]
[314002627,1707922246980,-500.0,0.00036712,2]
[314002628,1707922246990,-500.0,0.00036712,2]
[314002629,1707922247001,-782.65,0.00036712,2]
[314002630,1707922247012,-528.06,0.00036712,2]
[314002631,1707922247024,-500.0,0.00036712,2]
[314002632,1707922247034,-500.0,0.00036712,2]
[314002633,1707922247045,-635.89,0.00036712,2]
[314002634,1707922247055,-671.53,0.00036712,2]
[314002635,1707922247066,-500.0,0.00036712,2]
[314002636,1707922247076,-500.0,0.00036712,2]
[314002637,1707922247087,-220.62959425,0.00036712,2]
[314002638,1707922247097,-500.0,0.00036712,2]
[314002639,1707922247108,-500.0,0.00036712,2]
[314002640,1707922247118,-500.0,0.00036712,2]
[314002641,1707922247129,-500.0,0.00036712,2]
[314002642,1707922247140,-500.0,0.00036712,2]
[314002643,1707922247151,-500.0,0.00036712,2]
[314002644,1707922247161,-500.0,0.00036712,2]
[314002645,1707922247172,-899.09,0.00036712,2]
[314002646,1707922247182,-500.0,0.00036712,2]
[314002647,1707922247192,-500.0,0.00036712,2]
[314002648,1707922247202,-963.54,0.00036712,2]
[314002649,1707922247212,-500.0,0.00036712,2]
[314002650,1707922247222,-500.0,0.00036712,2]
[314002651,1707922247233,-1532.71,0.00036712,2]
[314002652,1707922247243,-500.0,0.00036712,2]
[314002653,1707922247253,-500.0,0.00036712,2]
[314002654,1707922247264,-500.0,0.00036712,2]
[314002655,1707922247276,-500.0,0.00036712,2]
[314002656,1707922247286,-500.0,0.00036712,2]
[314002657,1707922247297,-500.0,0.00036712,2]
[314002658,1707922247307,-1472.32,0.00036712,2]
[314002659,1707922247317,-751.45,0.00036712,2]
[314002660,1707922247327,-500.0,0.00036712,2]
[314002661,1707922247337,-500.0,0.00036712,2]
[314002662,1707922247347,-700.67,0.00036712,2]
[314002663,1707922247358,-1423.11,0.00036712,2]
[314002664,1707922247368,-1098.8,0.00036712,2]
[314002665,1707922247378,-500.0,0.00036712,2]
[314002666,1707922247389,-500.0,0.00036712,2]
[314002667,1707922247399,-778.18,0.00036712,2]
[314002668,1707922247409,-500.0,0.00036712,2]
[314002669,1707922247419,-521.46,0.00036712,2]
[314002670,1707922247429,-500.0,0.00036712,2]
[314002671,1707922247439,-500.0,0.00036712,2]
[314002672,1707922247450,-500.0,0.00036712,2]
[314002673,1707922247460,-500.0,0.00036712,2]
[314002674,1707922247470,-940.1,0.00036712,2]
[314002675,1707922247480,-1066.69,0.00036712,2]
[314002676,1707922247491,-543.73,0.00036712,7]
[314002677,1707922247500,-500.0,0.00036712,2]
[314002678,1707922247510,-275.60483469,0.00036712,2]
[314002679,1707922247522,-550.56,0.00036712,2]
[314002680,1707922247533,-500.0,0.00036712,2]
[314002681,1707922247543,-500.0,0.00036712,2]
[314002682,1707922247554,-500.0,0.00036712,2]
[314002683,1707922247564,-500.0,0.00036712,2]
[314002684,1707922247574,-621.38,0.00036712,2]
[314002685,1707922247584,-500.0,0.00036712,2]
[314002686,1707922247594,-500.0,0.00036712,2]
[314002687,1707922247605,-500.0,0.00036712,2]
[314002688,1707922247615,-794.55,0.00036712,2]
[314002689,1707922247626,-500.0,0.00036712,2]
[314002690,1707922247639,-918.12,0.00036712,2]
[314002691,1707922247653,-500.0,0.00036712,2]
[314002692,1707922247664,-500.0,0.00036712,2]
[314002693,1707922247675,-991.59,0.00036712,2]
[314002694,1707922247687,-569.15,0.00036712,2]
[314002695,1707922247699,-500.0,0.00036712,2]
[314002696,1707922247709,-716.75,0.00036712,2]
[314002697,1707922247721,-500.0,0.00036712,2]
[314002698,1707922247732,-500.0,0.00036712,2]
[314002699,1707922247742,-535.48,0.00036712,2]
[314002700,1707922247752,-500.0,0.00036712,2]
[314002701,1707922247762,-500.0,0.00036712,2]
[314002702,1707922247775,-1019.3,0.00036712,2]
[314002703,1707922247786,-500.0,0.00036712,2]
[314002704,1707922247797,-1006.2,0.00036712,2]
[314002705,1707922247809,-500.0,0.00036712,2]
[314002706,1707922247819,-648.59,0.00036712,2]
[314002707,1707922247830,-500.0,0.00036712,2]
[314002708,1707922247842,-500.0,0.00036712,2]
[314002709,1707922247853,-527.81938863,0.00036712,2]
[314002710,1707922247863,-500.0,0.00036712,2]
[314002711,1707922247874,-157.7544327,0.00036712,2]
[314002712,1707922247885,-500.0,0.00036712,2]
[314002713,1707922247896,-253.71111721,0.00036712,2]
[314002714,1707922247960,-265.62944393,0.00036712,2]
[314002715,1707922247971,-928.78,0.00036712,2]
[314002716,1707922247983,-500.0,0.00036712,2]
[314002717,1707922248247,-534.42,0.00036712,2]
[314002718,1707922248267,-500.0,0.00036712,2]
[314002719,1707922248280,-500.0,0.00036712,2]
[314002720,1707922248289,-500.0,0.00036712,2]
[314002721,1707922248299,-1580.92,0.00036712,2]
[314002722,1707922248310,-500.0,0.00036712,2]
[314002723,1707922248319,-541.27,0.00036712,2]
[314002724,1707922248329,-565.58,0.00036712,2]
[314002725,1707922248339,-807.63,0.00036712,2]
[314002726,1707922248349,-643.74,0.00036712,2]
[314002727,1707922248359,-507.18,0.00036712,2]
[314002728,1707922248369,-500.0,0.00036712,2]
[314002729,1707922248379,-500.0,0.00036712,2]
[314002730,1707922248390,-500.0,0.00036712,2]
[314002731,1707922248400,-500.0,0.00036712,2]
[314002732,1707922248411,-500.0,0.00036712,2]
[314002733,1707922248422,-500.03910027,0.00036712,2]
[314002734,1707922248432,-595.09,0.00036712,2]
[314002735,1707922248443,-500.0,0.00036712,2]
[314002736,1707922248453,-500.0,0.00036712,2]
[314002737,1707922248464,-500.0,0.00036712,2]
[314002738,1707922248474,-500.0,0.00036712,2]
[314002739,1707922248484,-571.31,0.00036712,2]
[314002740,1707922248494,-500.0,0.00036712,2]
[314002741,1707922248505,-561.47,0.00036712,2]
[314002742,1707922248514,-1216.14,0.00036712,2]
[314002743,1707922248525,-500.0,0.00036712,2]
[314002744,1707922248534,-839.99,0.00036712,2]
[314002745,1707922248544,-548.71,0.00036712,2]
[314002746,1707922248553,-570.44,0.00036712,2]
[314002747,1707922248562,-1391.78,0.00036712,2]
[314002748,1707922248571,-500.0,0.00036712,2]
[314002749,1707922248580,-500.0,0.00036712,2]
[314002750,1707922248590,-868.59,0.00036712,2]
[314002751,1707922248599,-525.19,0.00036712,2]
[314002752,1707922248608,-1540.05,0.00036712,2]
[314002753,1707922248617,-500.0,0.00036712,2]
[314002754,1707922248627,-500.0,0.00036712,2]
[314002755,1707922248637,-500.0,0.00036712,2]
[314002756,1707922248649,-1044.21,0.00036712,2]
[314002757,1707922248658,-500.0,0.00036712,2]
[314002758,1707922248667,-500.0,0.00036712,2]
[314002759,1707922248677,-1190.03,0.00036712,2]
[314002760,1707922248686,-500.0,0.00036712,2]
[314002761,1707922248697,-820.18,0.00036712,2]
[314002762,1707922248707,-500.0,0.00036712,2]
[314002763,1707922248717,-604.18,0.00036712,2]
[314002764,1707922248727,-984.39,0.00036712,2]
[314002765,1707922248736,-500.0,0.00036712,2]
[314002766,1707922248746,-500.0,0.00036712,2]
[314002767,1707922248755,-1424.63,0.00036712,2]
[314002768,1707922248766,-500.0,0.00036712,2]
[314002769,1707922248781,-934.68,0.00036712,2]
[314002770,1707922248793,-500.0,0.00036712,2]
[314002771,1707922248805,-500.0,0.00036712,2]
[314002772,1707922248814,-500.0,0.00036712,2]
[314002773,1707922248824,-500.0,0.00036712,2]
[314002774,1707922248835,-835.78,0.00036712,2]
[314002775,1707922248845,-500.0,0.00036712,2]
[314002776,1707922248854,-500.0,0.00036712,2]
[314002777,1707922248864,-2000.0,0.00036712,2]
[314002778,1707922248873,-500.0,0.00036712,2]
[314002779,1707922248884,-562.39,0.00036712,2]
[314002780,1707922248894,-755.67,0.00036712,2]
[314002781,1707922248903,-200.0,0.00036712,2]
[314002782,1707922248912,-500.0,0.00036712,2]
[314002783,1707922248922,-500.0,0.00036712,2]
[314002784,1707922248931,-500.0,0.00036712,2]
[314002785,1707922248941,-500.0,0.00036712,2]
[314002786,1707922248950,-500.0,0.00036712,2]
[314002787,1707922248959,-591.31,0.00036712,2]
[314002788,1707922248969,-1409.33,0.00036712,2]
[314002789,1707922248978,-500.0,0.00036712,2]
[314002790,1707922248988,-500.0,0.00036712,2]
[314002791,1707922248998,-500.0,0.00036712,2]
[314002792,1707922249007,-839.47,0.00036712,2]
[314002793,1707922249016,-500.0,0.00036712,2]
[314002794,1707922249029,-500.0,0.00036712,2]
[314002795,1707922249038,-507.62401409,0.00036712,2]
[314002796,1707922249047,-500.0,0.00036712,2]
[314002797,1707922249055,-500.0,0.00036712,2]
[314002798,1707922249064,-1224.97,0.00036712,2]
[314002799,1707922249074,-500.0,0.00036712,2]
[314002800,1707922249082,-628.94234534,0.00036712,2]
[314002801,1707922249091,-500.0,0.00036712,2]
[314002802,1707922249100,-500.0,0.00036712,2]
[314002803,1707922249111,-500.0,0.00036712,2]
[314002804,1707922249120,-500.0,0.00036712,2]
[314002805,1707922249130,-500.0,0.00036712,2]
[314002806,1707922249140,-419.06208999,0.00036712,2]
[314002807,1707922249172,-80.93791001,0.00036712,2]
[314002808,1707922249182,-500.0,0.00036712,2]
[314002809,1707922249192,-500.0,0.00036712,2]
[314002810,1707922249202,-500.0,0.00036712,2]
[314002811,1707922249211,-912.62,0.00036712,2]
[314002812,1707922249221,-500.0,0.00036712,2]
[314002813,1707922249230,-500.0,0.00036712,2]
[314002814,1707922249240,-527.88,0.00036712,2]
[314002815,1707922249249,-500.0,0.00036712,2]
[314002816,1707922249259,-601.93,0.00036712,2]
[314002817,1707922249269,-500.0,0.00036712,2]
[314002818,1707922249282,-599.95320017,0.00036712,2]
[314002819,1707922249291,-500.0,0.00036712,2]
[314002820,1707922249300,-500.0,0.00036712,2]
[314002821,1707922249309,-500.0,0.00036712,2]
[314002822,1707922249318,-500.0,0.00036712,2]
[314002823,1707922249328,-500.0,0.00036712,2]
[314002824,1707922249337,-500.0,0.00036712,2]
[314002825,1707922249347,-500.0,0.00036712,2]
[314002826,1707922249357,-2.64791426,0.00036712,2]
[314002827,1707922249380,-497.35208574,0.00036712,2]
[314002828,1707922249390,-500.0,0.00036712,2]
[314002829,1707922249400,-500.0,0.00036712,2]
[314002830,1707922249409,-511.93532192,0.00036712,2]
[314002831,1707922249419,-500.0,0.00036712,2]
[314002832,1707922249428,-500.0,0.00036712,2]
[314002833,1707922249438,-500.0,0.00036712,2]
[314002834,1707922249447,-500.0,0.00036712,2]
[314002835,1707922249456,-510.24048221,0.00036712,2]
[314002836,1707922249467,-500.0,0.00036712,2]
[314002837,1707922249476,-500.0,0.00036712,2]
[314002838,1707922249485,-500.0,0.00036712,2]
[314002839,1707922249494,-500.0,0.00036712,2]
[314002840,1707922249503,-500.0,0.00036712,2]
[314002841,1707922249512,-500.0,0.00036712,2]
[314002842,1707922249522,-500.0,0.00036712,2]
[314002843,1707922249532,-500.0,0.00036712,2]
[314002844,1707922249542,-500.0,0.00036712,2]
[314002845,1707922249551,-500.0,0.00036712,2]
[314002846,1707922249560,-500.0,0.00036712,2]
[314002847,1707922249570,-500.0,0.00036712,2]
[314002848,1707922249579,-500.0,0.00036712,2]
[314002849,1707922249588,-607.77,0.00036712,2]
[314002850,1707922249598,-500.0,0.00036712,2]
[314002851,1707922249609,-500.0,0.00036712,2]
[314002852,1707922249619,-500.0,0.00036712,2]
[314002853,1707922249629,-500.0,0.00036712,2]
[314002854,1707922249640,-500.0,0.00036712,2]
[314002855,1707922249650,-500.0,0.00036712,2]
[314002856,1707922249660,-500.0,0.00036712,2]
[314002857,1707922249670,-500.0,0.00036712,2]
[314002858,1707922249679,-500.0,0.00036712,2]
[314002859,1707922249688,-678.21,0.00036712,2]
[314002860,1707922249698,-500.0,0.00036712,2]
[314002861,1707922249707,-500.0,0.00036712,2]
[314002862,1707922249719,-1429.71,0.00036712,2]
[314002863,1707922249729,-500.0,0.00036712,2]
[314002864,1707922249738,-500.0,0.00036712,2]
[314002865,1707922249747,-263.99918,0.00036712,2]
[314002866,1707922249757,-500.0,0.00036712,2]
[314002867,1707922249766,-500.0,0.00036712,2]
[314002868,1707922249778,-500.0,0.00036712,2]
[314002869,1707922249787,-500.0,0.00036712,2]
[314002870,1707922249797,-500.0,0.00036712,2]
[314002871,1707922249806,-545.6,0.00036712,2]
[314002872,1707922249816,-500.0,0.00036712,2]
[314002873,1707922249826,-678.82,0.00036712,2]
[314002874,1707922249836,-500.0,0.00036712,2]
[314002875,1707922249846,-500.0,0.00036712,2]
[314002876,1707922249856,-506.44421242,0.00036712,2]
[314002877,1707922249865,-500.0,0.00036712,2]
[314002878,1707922249874,-786.31,0.00036712,2]
[314002879,1707922249884,-579.91,0.00036712,2]
[314002880,1707922249894,-500.0,0.00036712,2]
[314002881,1707922249903,-500.0,0.00036712,2]
[314002882,1707922249913,-500.0,0.00036712,2]
[314002883,1707922249922,-500.0,0.00036712,2]
[314002884,1707922249932,-500.0,0.00036712,2]
[314002885,1707922249941,-564.07,0.00036712,2]
[314002886,1707922249951,-500.0,0.00036712,2]
[314002887,1707922249960,-150.0,0.00036712,2]
[314002888,1707922249970,-500.0,0.00036712,2]
[314002889,1707922249979,-1284.74,0.00036712,2]
[314002890,1707922249989,-1000.0,0.00036712,7]
[314002891,1707922250000,-500.0,0.00036712,2]
[314002892,1707922250009,-500.0,0.00036712,2]
[314002893,1707922250019,-500.0,0.00036712,2]
[314002894,1707922250030,-500.0,0.00036712,2]
[314002895,1707922250040,-500.0,0.00036712,2]
[314002896,1707922250049,-500.0,0.00036712,2]
[314002897,1707922250059,-666.24,0.00036712,2]
[314002898,1707922250068,-620.97374092,0.00036712,2]